fUSD/lending_fUSD_20260324
["ID","MTS","AMOUNT","RATE_DAILY","PERIOD"]
[408856649,1774341826024,-500.0,0.00044657,120]
[408856650,1774341826060,-517.25,0.00044657,120]
[408856651,1774341826095,-500.0,0.00044657,120]
[408856652,1774341826130,-500.0,0.00044657,120]
[408856653,1774341826165,-500.0,0.00044657,120]
[408856654,1774341826202,-500.0,0.00044657,120]
[408856655,1774341826238,-500.0,0.00044657,120]
[408856656,1774341826276,-500.0,0.00044657,120]
[408856657,1774341826315,-500.0,0.00044657,120]
[408856658,1774341826349,-500.0,0.00044657,120]
[408856659,1774341826384,-478.73805097,0.00044657,120]
[408856660,1774341826418,-500.0,0.00044657,120]
[408856661,1774341826451,-500.0,0.00044657,120]
[408856662,1774341826485,-500.0,0.00044657,120]
[408856663,1774341826520,-500.0,0.00044657,120]
[408856664,1774341826555,-1068.58,0.00044657,120]
[408856665,1774341826588,-1383.25,0.00044657,120]
[408856666,1774341826621,-500.0,0.00044657,120]
[408856667,1774341826653,-500.0,0.00044657,120]
[408856668,1774341826686,-500.0,0.00044657,120]
[408856669,1774341826718,-500.0,0.00044657,120]
[408856670,1774341826751,-500.0,0.00044657,120]
[408856671,1774341826782,-500.0,0.00044657,120]
[408856672,1774341826816,-3690.16,0.00044657,120]
[408856673,1774341826848,-500.0,0.00044657,120]
[408856674,1774341826882,-500.0,0.00044657,120]
[408856675,1774341826913,-500.0,0.00044657,120]
[408856676,1774341826948,-500.0,0.00044657,120]
[408856677,1774341826982,-500.0,0.00044657,120]
[408856678,1774341827018,-500.0,0.00044657,120]
[408856679,1774341827052,-500.0,0.00044657,120]
[408856680,1774341827085,-500.0,0.00044657,120]
[408856681,1774341827118,-500.0,0.00044657,120]
[408856682,1774341827151,-500.0,0.00044657,120]
[408856683,1774341827186,-500.0,0.00044657,120]
[408856684,1774341827219,-500.0,0.00044657,120]
[408856685,1774341827258,-500.0,0.00044657,120]
[408856686,1774341827293,-500.0,0.00044657,120]
[408856687,1774341827329,-327.46350865,0.00044657,120]
[408856688,1774341827363,-621.3,0.00044657,120]
[408856689,1774341827396,-500.0,0.00044657,120]
[408856690,1774341827430,-500.0,0.00044657,120]
[408856691,1774341827464,-500.0,0.00044657,120]
[408856692,1774341827498,-244.89765947,0.00044657,120]
[408856693,1774341827534,-500.0,0.00044657,120]
[408856694,1774341827570,-2126.72,0.00044657,120]
[408856695,1774341827604,-500.0,0.00044657,120]
[408856696,1774341827636,-500.0,0.00044657,120]
[408856697,1774341827669,-500.0,0.00044657,120]
[408856698,1774341827701,-500.0,0.00044657,120]
[408856699,1774341827732,-500.0,0.00044657,120]
[408856700,1774341827766,-500.0,0.00044657,120]
[408856701,1774341827799,-500.0,0.00044657,120]
[408856702,1774341827836,-500.0,0.00044657,120]
[408856703,1774341827872,-500.0,0.00044657,120]
[408856704,1774341827907,-158.82998404,0.00044657,120]
[408856705,1774341827941,-500.0,0.00044657,120]
[408856706,1774341827974,-500.0,0.00044657,120]
[408856707,1774341828007,-694.45,0.00044657,120]
[408856708,1774341828043,-500.0,0.00044657,120]
[408856709,1774341828076,-500.0,0.00044657,120]
[408856710,1774341828112,-500.0,0.00044657,120]
[408856711,1774341828148,-500.0,0.00044657,120]
[408856712,1774341828187,-500.0,0.00044657,120]
[408856713,1774341828224,-500.0,0.00044657,120]
[408856714,1774341828268,-500.0,0.00044657,120]
[408856715,1774341828307,-500.0,0.00044657,120]
[408856716,1774341828343,-500.0,0.00044657,120]
[408856717,1774341828379,-500.0,0.00044657,120]
[408856718,1774341828417,-500.0,0.00044657,120]
[408856719,1774341828453,-500.0,0.00044657,120]
[408856720,1774341828491,-500.0,0.00044657,120]
[408856721,1774341828526,-500.0,0.00044657,120]
[408856722,1774341828562,-1870.96,0.00044657,60]
[408856723,1774341828603,-500.0,0.00044657,120]
[408856724,1774341828642,-500.0,0.00044657,120]
[408856725,1774341828676,-500.0,0.00044657,120]
[408856726,1774341828986,-500.0,0.00044657,120]
[408856727,1774341829023,-500.0,0.00044657,120]
[408856728,1774341829060,-500.0,0.00044657,120]
[408856729,1774341829097,-500.0,0.00044657,30]
[408856730,1774341829133,-500.0,0.00044657,120]
[408856731,1774341829167,-500.0,0.00044657,120]
[408856732,1774341829201,-500.0,0.00044657,120]
[408856733,1774341829239,-500.0,0.00044657,120]
[408856734,1774341829275,-500.0,0.00044657,120]
[408856735,1774341829311,-500.0,0.00044657,120]
[408856736,1774341829345,-156.5216645,0.00044657,120]
[408856737,1774341829380,-500.0,0.00044657,120]
[408856738,1774341829415,-500.0,0.00044657,120]
[408856739,1774341829449,-1542.37,0.00044657,120]
[408856740,1774341829490,-500.0,0.00044657,120]
[408856741,1774341829524,-500.0,0.00044657,120]
[408856742,1774341829558,-500.0,0.00044657,120]
[408856743,1774341829591,-1094.1,0.00044657,120]
[408856744,1774341829627,-500.0,0.00044657,120]
[408856745,1774341829663,-500.0,0.00044657,120]
[408856746,1774341829696,-500.0,0.00044657,120]
[408856747,1774341829730,-522.71,0.00044657,120]
[408856748,1774341829764,-500.0,0.00044657,120]
[408856749,1774341829800,-502.36496235,0.00044657,120]
[408856750,1774341829835,-500.0,0.00044657,120]
[408856751,1774341829871,-500.0,0.00044657,120]
[408856752,1774341829907,-500.0,0.00044657,120]
[408856753,1774341829947,-500.0,0.00044657,120]
[408856754,1774341829986,-500.0,0.00044657,120]
[408856755,1774341830024,-500.0,0.00044657,120]
[408856756,1774341830064,-500.0,0.00044657,120]
[408856757,1774341830100,-500.0,0.00044657,120]
[408856758,1774341830135,-500.0,0.00044657,120]
[408856759,1774341830171,-500.0,0.00044657,120]
[408856760,1774341830206,-500.0,0.00044657,120]
[408856761,1774341830242,-721.01,0.00044657,120]
[408856762,1774341830279,-1251.5,0.00044657,120]
[408856763,1774341830313,-500.0,0.00044657,120]
[408856764,1774341830347,-500.0,0.00044657,120]
[408856765,1774341830381,-500.0,0.00044657,120]
[408856766,1774341830418,-500.0,0.00044657,120]
[408856767,1774341830459,-872.26,0.00044657,120]
[408856768,1774341830495,-500.0,0.00044657,120]
[408856769,1774341830532,-500.0,0.00044657,120]
[408856770,1774341830570,-500.0,0.00044657,120]
[408856771,1774341830605,-500.0,0.00044657,120]
[408856772,1774341830641,-500.0,0.00044657,120]
[408856773,1774341830674,-500.0,0.00044657,120]
[408856774,1774341830708,-1166.7,0.00044657,120]
[408856775,1774341830741,-500.0,0.00044657,120]
[408856776,1774341830773,-500.0,0.00044657,120]
[408856777,1774341830805,-500.0,0.00044657,120]
[408856778,1774341830838,-503.52,0.00044657,120]
[408856779,1774341830870,-500.0,0.00044657,120]
[408856780,1774341830904,-500.0,0.00044657,120]
[408856781,1774341830941,-571.9,0.00044657,120]
[408856782,1774341830978,-500.0,0.00044657,120]
[408856783,1774341831011,-500.0,0.00044657,120]
[408856784,1774341831044,-500.0,0.00044657,120]
[408856785,1774341831079,-500.0,0.00044657,120]
[408856786,1774341831112,-500.0,0.00044657,120]
[408856787,1774341831150,-4633.59,0.00044657,120]
[408856788,1774341831188,-530.37092302,0.00044657,60]
[408856789,1774341831227,-500.0,0.00044657,120]
[408856790,1774341831268,-500.0,0.00044657,120]
[408856791,1774341831314,-500.0,0.00044657,120]
[408856792,1774341831351,-500.0,0.00044657,120]
[408856793,1774341831384,-500.0,0.00044657,120]
[408856794,1774341831429,-1436.52,0.00044657,120]
[408856795,1774341831463,-500.0,0.00044657,120]
[408856796,1774341831499,-500.0,0.00044657,120]
[408856797,1774341831535,-500.0,0.00044657,120]
[408856798,1774341831567,-153.95375312,0.00044748,120]
[408856799,1774341831601,-911.817249,0.0004493,60]
[408856800,1774341831636,-156.5216645,0.00044931,120]
[408856801,1774341831672,-500.0,0.00044931,120]
[408856802,1774341831706,-766.31,0.00044931,120]
[408856803,1774341831739,-500.0,0.00044931,120]
[408856804,1774341831772,-500.0,0.00044931,120]
[408856805,1774341831805,-600.58,0.00044931,120]
[408856806,1774341831838,-500.0,0.00044931,120]
[408856807,1774341831870,-500.0,0.00044931,120]
[408856808,1774341831904,-500.0,0.00044931,120]
[408856809,1774341831941,-500.0,0.00044931,120]
[408856810,1774341831978,-500.0,0.00044931,120]
[408856811,1774341832016,-561.45,0.00044931,120]
[408856812,1774341832051,-500.0,0.00044931,120]
[408856813,1774341832086,-1032.07,0.00044931,120]
[408856814,1774341832120,-605.13428561,0.00044931,120]
[408856815,1774341832155,-500.0,0.00044931,120]
[408856816,1774341832191,-500.0,0.00044931,120]
[408856817,1774341832227,-500.0,0.00044931,120]
[408856818,1774341832267,-500.0,0.00044931,120]
[408856819,1774341832305,-806.09,0.00044931,120]
[408856820,1774341832342,-968.7,0.00044931,120]
[408856821,1774341832601,-500.0,0.00044931,120]
[408856822,1774341832637,-273.76788078,0.00044931,120]
[408856823,1774341832673,-500.0,0.00044931,120]
[408856824,1774341832709,-559.61174221,0.00044931,120]
[408856825,1774341832745,-621.45118559,0.00044931,120]
[408856826,1774341832780,-777.88,0.00044931,120]
[408856827,1774341832815,-500.0,0.00044931,120]
[408856828,1774341832849,-500.0,0.00044931,120]
[408856829,1774341832885,-500.0,0.00044931,120]
[408856830,1774341832917,-368.24700533,0.00044931,120]
[408856831,1774341832953,-784.79,0.00044931,120]
[408856832,1774341832989,-604.88004271,0.00044931,120]
[408856833,1774341833026,-500.0,0.00044931,120]
[408856834,1774341833066,-500.0,0.00044931,120]
[408856835,1774341833102,-500.0,0.00044931,120]
[408856836,1774341833140,-500.0,0.00044931,120]
[408856837,1774341833183,-500.0,0.00044931,120]
[408856838,1774341833220,-500.0,0.00044931,120]
[408856839,1774341833260,-500.0,0.00044931,120]
[408856840,1774341833296,-469.92701371,0.00044931,120]
[408856841,1774341833335,-1373.12,0.00044931,120]
[408856842,1774341833370,-500.0,0.00044931,120]
[408856843,1774341833405,-500.0,0.00044931,120]
[408856844,1774341833441,-500.0,0.00044931,120]
[408856845,1774341833477,-565.4646974,0.00044931,120]
[408856846,1774341833512,-604.84763086,0.00044931,120]
[408856847,1774341833548,-500.0,0.00044931,120]
[408856848,1774341833583,-399.77217531,0.00044931,120]
[408856849,1774341833618,-500.0,0.00044931,120]
[408856850,1774341833650,-500.0,0.00044931,120]
[408856851,1774341833685,-500.0,0.00044931,120]
[408856852,1774341833719,-2682.47,0.00044931,120]
[408856853,1774341833753,-1490.64,0.00044931,120]
[408856854,1774341833788,-500.0,0.00044931,120]
[408856855,1774341833822,-585.16,0.00044931,120]
[408856856,1774341833857,-500.0,0.00044931,120]
[408856857,1774341833891,-577.98569185,0.00044931,120]
[408856858,1774341833924,-638.02,0.00044931,120]
[408856859,1774341833958,-500.0,0.00044931,120]
[408856860,1774341833993,-500.0,0.00044931,120]
[408856861,1774341834027,-500.0,0.00044931,120]
[408856862,1774341834064,-500.0,0.00044931,120]
[408856863,1774341834100,-500.0,0.00044931,120]
[408856864,1774341834134,-400.49589778,0.00044931,120]
[408856865,1774341834171,-500.0,0.00044931,120]
[408856866,1774341834207,-500.0,0.00044931,120]
[408856867,1774341834243,-288.73009996,0.00044931,120]
[408856868,1774341834279,-500.0,0.00044931,120]
[408856869,1774341834314,-532.6,0.00044931,120]
[408856870,1774341834350,-400.07269896,0.00044931,120]
[408856871,1774341834386,-552.87443319,0.00044931,120]
[408856872,1774341834421,-159.82841748,0.00044931,120]
[408856873,1774341834455,-500.0,0.00044931,120]
[408856874,1774341834490,-500.0,0.00044931,120]
[408856875,1774341834525,-500.0,0.00044931,60]
[408856876,1774341834560,-500.0,0.00044931,120]
[408856877,1774341834596,-500.0,0.00044931,120]
[408856878,1774341834631,-500.0,0.00044931,120]
[408856879,1774341834664,-500.0,0.00044931,120]
[408856880,1774341834697,-500.0,0.00044931,120]
[408856881,1774341834731,-842.73,0.00044931,120]
[408856882,1774341834766,-596.08,0.00044931,120]
[408856883,1774341834800,-500.0,0.00044931,120]
[408856884,1774341834832,-500.0,0.00044931,120]
[408856885,1774341834863,-255.37205707,0.00044931,120]
[408856886,1774341834898,-500.0,0.00044931,120]
[408856887,1774341834932,-500.0,0.00044931,120]
[408856888,1774341834968,-528.59359469,0.00044931,120]
[408856889,1774341835002,-500.0,0.00044931,120]
[408856890,1774341835038,-500.0,0.00044931,120]
[408856891,1774341835073,-500.0,0.00044931,120]
[408856892,1774341835108,-500.0,0.00044931,120]
[408856893,1774341835144,-500.0,0.00044931,120]
[408856894,1774341835178,-500.0,0.00044931,120]
[408856895,1774341835216,-500.0,0.00044931,120]
[408856896,1774341835255,-500.0,0.00044931,120]
[408856897,1774341835291,-500.0,0.00044931,30]
[408856898,1774341835325,-500.0,0.00044931,120]
[408856899,1774341835356,-500.0,0.00044931,120]
[408856900,1774341835388,-343.26729407,0.00044931,120]
[408856901,1774341835421,-500.0,0.00044931,120]
[408856902,1774341835454,-796.12,0.00044931,120]
[408856903,1774341835487,-500.0,0.00044931,120]
[408856904,1774341835518,-500.0,0.00044931,120]
[408856905,1774341835551,-500.0,0.00044931,120]
[408856906,1774341835583,-392.87363929,0.00044931,120]
[408856907,1774341835613,-607.12479752,0.00044931,120]
[408856908,1774341835644,-500.0,0.00044931,120]
[408856909,1774341835679,-500.0,0.00044931,120]
[408856910,1774341835711,-562.50135315,0.00044931,120]
[408856911,1774341835743,-500.0,0.00044931,120]
[408856912,1774341835774,-500.0,0.00044931,30]
[408856913,1774341835806,-500.0,0.00044931,120]
[408856914,1774341835837,-500.0,0.00044931,120]
[408856915,1774341835869,-500.0,0.00044931,120]
[408856916,1774341836108,-518.09,0.00044931,120]
[408856917,1774341836146,-616.8,0.00044931,120]
[408856918,1774341836184,-599.87420821,0.00044931,120]
[408856919,1774341836220,-862.31,0.00044931,120]
[408856920,1774341836259,-500.0,0.00044931,120]
[408856921,1774341836295,-615.79305345,0.00044931,120]
[408856922,1774341836335,-500.0,0.00044931,120]
[408856923,1774341836370,-500.0,0.00044931,120]
[408856924,1774341836405,-558.32987395,0.00044931,120]
[408856925,1774341836440,-500.0,0.00044931,120]
[408856926,1774341836476,-500.0,0.00044931,120]
[408856927,1774341836511,-500.0,0.00044931,60]
[408856928,1774341836544,-500.0,0.00044931,120]
[408856929,1774341836579,-500.0,0.00044931,120]
[408856930,1774341836612,-204.8093375,0.00044931,120]
[408856931,1774341836644,-500.0,0.00044931,120]
[408856932,1774341836676,-517.39,0.00044931,120]
[408856933,1774341836708,-537.23,0.00044931,120]
[408856934,1774341836740,-500.0,0.00044931,120]
[408856935,1774341836771,-566.76368204,0.00044931,30]
[408856936,1774341836803,-1950.98,0.00044931,120]
[408856937,1774341836835,-500.0,0.00044931,120]
[408856938,1774341836868,-828.22,0.00044931,120]
[408856939,1774341836900,-595.8,0.00044931,120]
[408856940,1774341836934,-500.0,0.00044931,120]
[408856941,1774341836970,-500.0,0.00044931,120]
[408856942,1774341837006,-613.54,0.00044931,120]
[408856943,1774341837045,-500.0,0.00044931,120]
[408856944,1774341837082,-500.0,0.00044931,120]
[408856945,1774341837119,-500.0,0.00044931,120]
[408856946,1774341837157,-500.0,0.00044931,120]
[408856947,1774341837197,-500.0,0.00044931,120]
[408856948,1774341837238,-470.38814177,0.00044931,120]
[408856949,1774341837276,-500.0,0.00044931,120]
[408856950,1774341837315,-500.0,0.00044931,120]
[408856951,1774341837352,-500.0,0.00044931,30]
[408856952,1774341837387,-500.0,0.00044931,120]
[408856953,1774341837425,-500.0,0.00044931,120]
[408856954,1774341837460,-500.0,0.00044931,120]
[408856955,1774341837498,-289.21008504,0.00044931,120]
[408856956,1774341837534,-500.0,0.00044931,120]
[408856957,1774341837569,-500.0,0.00044931,120]
[408856958,1774341837604,-500.0,0.00044931,120]
[408856959,1774341837640,-523.51906733,0.00044931,120]
[408856960,1774341837677,-500.0,0.00044931,120]
[408856961,1774341837711,-2958.91,0.00044931,120]
[408856962,1774341837746,-500.0,0.00044931,120]
[408856963,1774341837780,-559.67,0.00044931,120]
[408856964,1774341837814,-500.0,0.00044931,120]
[408856965,1774341837850,-469.35187172,0.00044931,120]
[408856966,1774341837885,-500.0,0.00044931,120]
[408856967,1774341837920,-500.0,0.00044931,120]
[408856968,1774341837956,-755.16,0.00044931,120]
[408856969,1774341837993,-500.0,0.00044931,120]
[408856970,1774341838028,-500.0,0.00044931,120]
[408856971,1774341838063,-500.0,0.00044931,120]
[408856972,1774341838097,-500.0,0.00044931,120]
[408856973,1774341838132,-419.42735524,0.00044931,120]
[408856974,1774341838167,-417.63960373,0.00044931,120]
[408856975,1774341838205,-500.0,0.00044931,120]
[408856976,1774341838241,-500.0,0.00044931,120]
[408856977,1774341838277,-500.0,0.00044931,120]
[408856978,1774341838313,-181.63792803,0.00044931,120]
[408856979,1774341838346,-500.0,0.00044931,120]
[408856980,1774341838380,-500.0,0.00044931,120]
[408856981,1774341838414,-500.0,0.00044931,60]
[408856982,1774341838447,-500.0,0.00044931,120]
[408856983,1774341838484,-500.0,0.00044931,120]
[408856984,1774341838518,-500.0,0.00044931,120]
[408856985,1774341838551,-500.0,0.00044931,120]
[408856986,1774341838582,-500.0,0.00044931,120]
[408856987,1774341838614,-500.0,0.00044931,120]
[408856988,1774341838647,-1037.12,0.00044931,120]
[408856989,1774341838680,-421.87788743,0.00044931,120]
[408856990,1774341838711,-1087.57,0.00044931,120]
[408856991,1774341838742,-547.58691838,0.00044931,120]
[408856992,1774341838776,-500.0,0.00044931,120]
[408856993,1774341838811,-500.0,0.00044931,120]
[408856994,1774341838846,-500.0,0.00044931,120]
[408856995,1774341838882,-1059.95,0.00044931,120]
[408856996,1774341838916,-564.15,0.00044931,120]
[408856997,1774341838950,-500.0,0.00044931,120]
[408856998,1774341838984,-500.0,0.00044931,120]
[408856999,1774341839020,-500.0,0.00044931,120]
[408857000,1774341839061,-500.0,0.00044931,120]
[408857001,1774341839100,-500.0,0.00044931,120]
[408857002,1774341839139,-500.0,0.00044931,120]
[408857003,1774341839181,-500.0,0.00044931,120]
[408857004,1774341839218,-500.0,0.00044931,120]
[408857005,1774341839256,-500.0,0.00044931,120]
[408857006,1774341839292,-364.38408506,0.00044931,120]
[408857007,1774341839328,-592.09505302,0.00044931,120]
[408857008,1774341839361,-371.34644928,0.00044931,120]
[408857009,1774341839394,-500.0,0.00044931,120]
[408857010,1774341839431,-500.0,0.00044931,120]
[408857011,1774341839694,-500.0,0.00044931,120]
[408857012,1774341839729,-500.0,0.00044931,120]
[408857013,1774341839765,-458.25382085,0.00044931,120]
[408857014,1774341839798,-500.0,0.00044931,120]
[408857015,1774341839831,-500.0,0.00044931,120]
[408857016,1774341839863,-500.0,0.00044931,30]
[408857017,1774341839896,-500.0,0.00044931,120]
[408857018,1774341839930,-500.0,0.00044931,120]
[408857019,1774341839964,-634.46,0.00044931,120]
[408857020,1774341839998,-215.33321067,0.00044931,120]
[408857021,1774341840033,-500.0,0.00044931,120]
[408857022,1774341840071,-500.0,0.00044931,30]
[408857023,1774341840110,-597.58,0.00044931,120]
[408857024,1774341840148,-500.0,0.00044931,120]
[408857025,1774341840189,-345.98090703,0.00044931,120]
[408857026,1774341840228,-3144.42,0.00044931,120]
[408857027,1774341840271,-500.0,0.00044931,120]
[408857028,1774341840312,-500.0,0.00044931,120]
[408857029,1774341840348,-500.0,0.00044931,120]
[408857030,1774341840383,-500.0,0.00044931,120]
[408857031,1774341840418,-500.0,0.00044931,120]
[408857032,1774341840452,-500.0,0.00044931,120]
[408857033,1774341840487,-419.09514734,0.00044931,120]
[408857034,1774341840523,-500.0,0.00044931,120]
[408857035,1774341840557,-500.0,0.00044931,120]
[408857036,1774341840593,-500.0,0.00044931,120]
[408857037,1774341840628,-500.0,0.00044931,120]
[408857038,1774341840660,-165.85566776,0.00044931,120]
[408857039,1774341840692,-500.0,0.00044931,120]
[408857040,1774341840726,-500.0,0.00044931,120]
[408857041,1774341840759,-500.0,0.00044931,120]
[408857042,1774341840791,-500.0,0.00044931,120]
[408857043,1774341840823,-209.97026261,0.00044931,120]
[408857044,1774341840856,-500.0,0.00044931,120]
[408857045,1774341840888,-500.0,0.00044931,120]
[408857046,1774341840920,-500.0,0.00044931,120]
[408857047,1774341840954,-475.14767124,0.00044931,120]
[408857048,1774341840988,-500.0,0.00044931,120]
[408857049,1774341841022,-343.82311571,0.00044931,120]
[408857050,1774341841060,-500.0,0.00044931,120]
[408857051,1774341841098,-500.0,0.00044931,120]
[408857052,1774341841134,-500.0,0.00044931,120]
[408857053,1774341841171,-356.88437226,0.00044931,120]
[408857054,1774341841208,-579.02401335,0.00044931,120]
[408857055,1774341841244,-588.29,0.00044931,120]
[408857056,1774341841280,-500.0,0.00044931,120]
[408857057,1774341841315,-639.58637835,0.00044931,120]
[408857058,1774341841349,-500.0,0.00044931,120]
[408857059,1774341841387,-500.0,0.00044931,120]
[408857060,1774341841421,-500.0,0.00044931,120]
[408857061,1774341841454,-500.0,0.00044931,120]
[408857062,1774341841488,-558.38,0.00044931,120]
[408857063,1774341841523,-500.0,0.00044931,120]
[408857064,1774341841559,-598.8183798,0.00044931,120]
[408857065,1774341841594,-500.0,0.00044931,120]
[408857066,1774341841628,-500.0,0.00044931,120]
[408857067,1774341841662,-500.0,0.00044931,120]
[408857068,1774341841696,-500.0,0.00044931,120]
[408857069,1774341841731,-500.0,0.00044931,120]
[408857070,1774341841765,-500.0,0.00044931,120]
[408857071,1774341841798,-500.0,0.00044931,120]
[408857072,1774341841833,-500.0,0.00044931,120]
[408857073,1774341841869,-500.0,0.00044931,120]
[408857074,1774341841908,-500.0,0.00044931,120]
[408857075,1774341841946,-500.0,0.00044931,120]
[408857076,1774341841987,-500.0,0.00044931,120]
[408857077,1774341842026,-572.12112765,0.00044931,120]
[408857078,1774341842063,-500.0,0.00044931,120]
[408857079,1774341842096,-1666.3,0.00044931,120]
[408857080,1774341842131,-500.0,0.00044931,120]
[408857081,1774341842166,-1127.89,0.00044931,120]
[408857082,1774341842202,-500.0,0.00044931,120]
[408857083,1774341842241,-833.99,0.00044931,120]
[408857084,1774341842284,-500.0,0.00044931,120]
[408857085,1774341842321,-500.0,0.00044931,120]
[408857086,1774341842359,-707.4,0.00044931,120]
[408857087,1774341842395,-500.0,0.00044931,120]
[408857088,1774341842432,-500.0,0.00044931,120]
[408857089,1774341842470,-500.0,0.00044931,120]
[408857090,1774341842506,-280.79841776,0.00044931,120]
[408857091,1774341842542,-500.0,0.00044931,120]
[408857092,1774341842577,-500.0,0.00044931,120]
[408857093,1774341842613,-500.0,0.00044931,120]
[408857094,1774341842646,-5146.05,0.00044931,120]
[408857095,1774341842679,-500.0,0.00044931,120]
[408857096,1774341842712,-753.6,0.00044931,120]
[408857097,1774341842745,-500.0,0.00044931,120]
[408857098,1774341842779,-500.0,0.00044931,120]
[408857099,1774341842812,-500.0,0.00044931,120]
[408857100,1774341842844,-2320.82,0.00044931,90]
[408857101,1774341842878,-500.0,0.00044931,120]
[408857102,1774341842911,-500.0,0.00044931,120]
[408857103,1774341842945,-500.0,0.00044931,120]
[408857104,1774341842983,-500.0,0.00044931,120]
[408857105,1774341843021,-500.0,0.00044931,120]
[408857106,1774341843067,-500.0,0.00044931,120]
[408857107,1774341843103,-989.59,0.00044931,120]
[408857108,1774341843139,-332.81842986,0.00044931,120]
[408857109,1774341843179,-247.23956938,0.00044931,120]
[408857110,1774341843217,-1667.93,0.00044931,120]
[408857111,1774341843254,-500.0,0.00044931,120]
[408857112,1774341843290,-369.38509933,0.00044931,120]
[408857113,1774341843326,-500.0,0.00044931,120]
[408857114,1774341843360,-717.94,0.00044931,120]
[408857115,1774341843394,-397.53307804,0.00044931,120]
[408857116,1774341843428,-500.0,0.00044931,120]
[408857117,1774341843463,-972.23,0.00044931,120]
[408857118,1774341843499,-500.0,0.00044931,120]
[408857119,1774341843536,-500.0,0.00044931,120]
[408857120,1774341843573,-500.0,0.00044931,120]
[408857121,1774341843607,-500.0,0.00044931,120]
[408857122,1774341843641,-500.0,0.00044931,120]
[408857123,1774341843678,-500.0,0.00044931,120]
[408857124,1774341843713,-500.0,0.00044931,120]
[408857125,1774341843748,-834.18,0.00044931,120]
[408857126,1774341843786,-500.0,0.00044931,120]
[408857127,1774341843824,-626.13812487,0.00044931,120]
[408857128,1774341843860,-788.64,0.00044931,120]
[408857129,1774341843897,-1464.26,0.00044931,120]
[408857130,1774341843933,-500.0,0.00044931,120]
[408857131,1774341843971,-351.29767766,0.00044931,120]
[408857132,1774341844011,-500.0,0.00044931,120]
[408857133,1774341844049,-500.0,0.00044931,120]
[408857134,1774341844085,-500.0,0.00044931,120]
[408857135,1774341844123,-500.0,0.00044931,120]
[408857136,1774341844159,-500.0,0.00044931,120]
[408857137,1774341844195,-1066.66,0.00044931,120]
[408857138,1774341844235,-667.09,0.00044931,120]
[408857139,1774341844272,-500.0,0.00044931,120]
[408857140,1774341844315,-602.70779928,0.00044931,30]
[408857141,1774341844353,-500.0,0.00044931,120]
[408857142,1774341844390,-511.75187883,0.00044931,120]
[408857143,1774341844429,-500.0,0.00044931,120]
[408857144,1774341844469,-500.0,0.00044931,120]
[408857145,1774341844507,-373.77893522,0.00044931,120]
[408857146,1774341844548,-500.0,0.00044931,120]
[408857147,1774341844587,-500.0,0.00044931,120]
[408857148,1774341844624,-500.0,0.00044931,120]